fUSD/lending_fUSD_20260501
["ID","MTS","AMOUNT","RATE_DAILY","PERIOD"]
[421407843,1777576240000,-7997.52238149,0.00012,2]
[421407851,1777576240000,-150.0,0.00012,2]
[421407853,1777576240000,-6534.34989202,0.00012,2]
[421407854,1777576240000,-1000.0,0.00012,2]
[421407857,1777576240000,-1000.0,0.00012,2]
[421407858,1777576240000,-1000.0,0.00012,2]
[421407860,1777576240000,-744.97471172,0.00012,2]
[421407862,1777576240000,-150.0,0.00012,2]
[421407867,1777576240000,-403.46388559,0.00012,2]
[421407864,1777576240000,-18356.46937608,0.00012,2]
[421408229,1777576243000,-28.65372707,0.0001176,2]
[421408333,1777576276000,2956.81,0.00030137,120]
[421408334,1777576287000,2956.81,0.00030137,120]
[421408335,1777576549000,152.17252239,0.00029533,120]
[421408336,1777576564000,10000.0,0.000301,120]
[421408338,1777576565000,10094.0,0.000301,120]
[421408337,1777576565000,10000.0,0.000301,120]
[421408339,1777576700000,500.003,0.00030137,120]
[421408340,1777576757000,500.0,0.00029533,120]
[421408341,1777576763000,500.0,0.00029533,120]
[421408342,1777576840000,500.0,0.00029533,120]
[421408343,1777576861000,577.81,0.00029654,120]
[421408344,1777577002000,500.0,0.00029533,120]
[421408345,1777577086000,500.0,0.00029533,120]
[421408346,1777577169000,500.0,0.00029654,120]
[421408347,1777577178000,500.0,0.00029654,120]
[421408348,1777577202000,-287.23190039,0.0001015,2]
[421408350,1777577202000,-162.66809961,0.00010199,2]
[421408349,1777577202000,-1200.0,0.00010199,2]
[421408351,1777577271000,746.4,0.00029533,120]
[421408352,1777577292000,500.0,0.00029533,120]
[421408353,1777577347000,500.0,0.00029654,120]
[421408355,1777577431000,-300.0,0.00010199,2]
[421408370,1777577431000,-3737.20123914,0.000102,2]
[421408371,1777577431000,-1255.39034168,0.000102,2]
[421408368,1777577431000,-362.6640154,0.000102,2]
[421408367,1777577431000,-1123.1044889,0.000102,2]
[421408364,1777577431000,-370.97500365,0.000102,2]
[421408366,1777577431000,-476.96657114,0.000102,2]
[421408365,1777577431000,-457.48551165,0.000102,2]
[421408362,1777577431000,-625.05307491,0.000102,2]
[421408363,1777577431000,-388.9964205,0.000102,2]
[421408359,1777577431000,-67708.1,0.000102,2]
[421408361,1777577431000,-522.00245098,0.000102,2]
[421408360,1777577431000,-1503.14592439,0.000102,2]
[421408358,1777577431000,-94431.84241392,0.000102,2]
[421408357,1777577431000,-150.0,0.00010199,2]
[421408356,1777577431000,-1200.0,0.00010199,2]
[421408354,1777577431000,-216.05758608,0.00010198,2]
[421408373,1777577431000,-7117.99673118,0.000102,2]
[421408377,1777577431000,-568.1379962,0.00010299,2]
[421408372,1777577431000,-5859.642288,0.000102,2]
[421408390,1777577431000,-28881.76108467,0.000103,2]
[421408391,1777577431000,-1557.27262659,0.000103,2]
[421408388,1777577431000,-57208.36975643,0.000103,2]
[421408369,1777577431000,-989.14882456,0.000102,2]
[421408387,1777577431000,-644.2,0.00010299,2]
[421408386,1777577431000,-583.7158441,0.00010299,2]
[421408384,1777577431000,-248.97115025,0.00010299,2]
[421408383,1777577431000,-500.0,0.00010299,2]
[421408389,1777577431000,-47644.80413245,0.000103,2]
[421408382,1777577431000,-175.57563521,0.00010299,2]
[421408379,1777577431000,-500.0,0.00010299,2]
[421408378,1777577431000,-500.0,0.00010299,2]
[421408380,1777577431000,-245.72868703,0.00010299,2]
[421408376,1777577431000,-500.0,0.00010299,2]
[421408385,1777577431000,-500.0,0.00010299,2]
[421408374,1777577431000,-1832.6626,0.000102,2]
[421408375,1777577431000,-500.0,0.00010299,2]
[421408381,1777577431000,-500.0,0.00010299,2]
[421408400,1777577437000,-667.96197469,0.000103,2]
[421408399,1777577437000,-2127.56901028,0.000103,2]
[421408401,1777577437000,-380.52932165,0.000103,2]
[421408406,1777577437000,-57120.47832789,0.000103,2]
[421408403,1777577437000,-1678.19997191,0.000103,2]
[421408404,1777577437000,-17800.45971582,0.000103,2]
[421408405,1777577437000,-598.30183356,0.000103,2]
[421408402,1777577437000,-3000.0,0.000103,2]
[421408436,1777577439000,-2540.85,0.000103,2]
[421408438,1777577439000,-9954.62348864,0.000103,2]
[421408437,1777577439000,-29319.30123661,0.000103,2]
[421408439,1777577439000,-2357.27069278,0.000103,2]
[421408441,1777577439000,-507.18,0.000103,2]
[421408442,1777577439000,-671.81221062,0.000103,2]
[421408440,1777577439000,-2000.0,0.000103,2]
[421408466,1777577440000,-2000.0,0.000117,2]
[421408467,1777577440000,-1282.21194612,0.0001176,2]
[421408461,1777577440000,-644.2,0.00011395,2]
[421408464,1777577440000,-644.2067081,0.00011669,2]
[421408465,1777577440000,-500.0,0.000117,2]
[421408462,1777577440000,-380.529321,0.000114,2]
[421408459,1777577440000,-250.0,0.0001122,2]
[421408460,1777577440000,-4000.0,0.00011272,2]
[421408456,1777577440000,-2681.50741031,0.00011218,2]
[421408458,1777577440000,-1680.0,0.00011219,2]
[421408457,1777577440000,-500.0,0.00011218,2]
[421408454,1777577440000,-250.0,0.00011218,2]
[421408455,1777577440000,-5000.0,0.00011218,2]
[421408450,1777577440000,-644.2,0.00011121,2]
[421408451,1777577440000,-255.0,0.00011209,2]
[421408453,1777577440000,-250.0,0.00011218,2]
[421408449,1777577440000,-30298.78073371,0.00011099,2]
[421408452,1777577440000,-420.0,0.00011217,2]
[421408447,1777577440000,-4000.0,0.00010997,2]
[421408444,1777577440000,-644.2,0.00010573,2]
[421408448,1777577440000,-31401.82796981,0.00011099,2]
[421408446,1777577440000,-1998.42587385,0.000109,2]
[421408445,1777577440000,-644.2,0.00010847,2]
[421408443,1777577440000,-153870.54911541,0.000103,2]
[421408468,1777577440000,-368.62,0.00011792,2]
[421408470,1777577440000,-2131.0,0.000118,2]
[421408463,1777577440000,-4000.0,0.00011547,2]
[421408472,1777577440000,-4000.0,0.00011822,2]
[421408496,1777577440000,-1342620.18770365,0.00012,2]
[421408497,1777577440000,-9324.79362834,0.00012,2]
[421408495,1777577440000,-922.0,0.00012,2]
[421408469,1777577440000,-398.52,0.00011792,2]
[421408493,1777577440000,-1996.14741271,0.00012,2]
[421408492,1777577440000,-150.0,0.00012,2]
[421408491,1777577440000,-34979.18481557,0.00012,2]
[421408490,1777577440000,-448.93972679,0.0001199,2]
[421408487,1777577440000,-500.0,0.00011973,2]
[421408486,1777577440000,-501.39565681,0.00011973,2]
[421408489,1777577440000,-448.93972679,0.0001199,2]
[421408485,1777577440000,-500.0,0.00011973,2]
[421408484,1777577440000,-250.0,0.00011973,2]
[421408494,1777577440000,-881.0,0.00012,2]
[421408482,1777577440000,-200.0,0.00011945,2]
[421408483,1777577440000,-1281.44175253,0.00011961,2]
[421408480,1777577440000,-1226.1907507,0.00011908,2]
[421408481,1777577440000,-191.02,0.00011931,2]
[421408478,1777577440000,-2592.098,0.00011853,2]
[421408479,1777577440000,-193.309,0.00011853,2]
[421408476,1777577440000,-1049.0,0.00011836,2]
[421408477,1777577440000,-6037.0,0.00011836,2]
[421408473,1777577440000,-1267.0,0.00011836,2]
[421408475,1777577440000,-1663.0,0.00011836,2]
[421408471,1777577440000,-313.0,0.000118,2]
[421408474,1777577440000,-1220.0,0.00011836,2]
[421408488,1777577440000,-500.0,0.00011973,2]
[421408532,1777577442000,-907.84162244,0.00012,2]
[421408529,1777577442000,-1583.00494876,0.00011836,2]
[421408531,1777577442000,-9854.02263939,0.00012,2]
[421408530,1777577442000,-1949.99505124,0.00011836,2]
[421408534,1777577442000,-1051.41253421,0.00012,2]
[421408535,1777577442000,-1374.44048085,0.00012,2]
[421408533,1777577442000,-680.76275655,0.00012,2]
[421408559,1777577445000,-1078.07,0.00012,2]
[421408558,1777577445000,-1362.91705858,0.00012,2]
[421408556,1777577445000,-183308.03094643,0.00012,2]
[421408557,1777577445000,-98417.06086379,0.00012,2]
[421408554,1777577445000,-279.885,0.00012,2]
[421408555,1777577445000,-553.5,0.00012,2]
[421408551,1777577445000,-64.0346802,0.000119,2]
[421408553,1777577445000,-166907.93290729,0.00012,2]
[421408552,1777577445000,-2469.56448617,0.00012,2]
[421408550,1777577445000,-112.19203592,0.000119,2]
[421408549,1777577445000,-854.80796408,0.0001176,2]
[421408560,1777577446000,-1550.39879299,0.00012,2]
[421408562,1777577446000,-1123.71239335,0.00012,2]
[421408561,1777577446000,-961.05676293,0.00012,2]
[421408566,1777577451000,152.0,0.00010448,7]
[421408567,1777577559000,500.0,0.00029533,120]
[421408568,1777577589000,1216.18,0.00029533,120]
[421408569,1777577660000,500.0,0.00029533,120]
[421408570,1777578200000,2000.0,0.00030137,120]
[421408573,1777578631000,-166.92231566,0.0001005,2]
[421408574,1777578631000,-161.96392171,0.00010099,2]
[421408572,1777578631000,-83.07768434,0.0001005,2]
[421408571,1777578631000,-380.5294,0.0001,2]
[421408602,1777578637000,-200.0,0.00010694,2]
[421408601,1777578637000,-1807.55375528,0.0001069,2]
[421408599,1777578637000,-380.52932165,0.0001069,2]
[421408598,1777578637000,-667.96197469,0.0001069,2]
[421408597,1777578637000,-347.25659751,0.0001069,2]
[421408593,1777578637000,-5700.10719233,0.000101,2]
[421408589,1777578637000,-815.91901641,0.00010099,2]
[421408594,1777578637000,-191.02,0.00010645,2]
[421408595,1777578637000,-8.28781395,0.0001069,2]
[421408603,1777578637000,-150.0,0.00010699,2]
[421408591,1777578637000,-318.18058212,0.000101,2]
[421408590,1777578637000,-222.11706188,0.00010099,2]
[421408596,1777578637000,-3562.06698633,0.0001069,2]
[421408600,1777578637000,-1894.42310382,0.0001069,2]
[421408592,1777578637000,-17956.07462555,0.000101,2]
[421408605,1777578637000,-9662.93463532,0.000107,2]
[421408604,1777578637000,-3842.44624472,0.000107,2]
[421408618,1777578637000,-720.01455073,0.000107,2]
[421408616,1777578637000,-974.33676083,0.000107,2]
[421408617,1777578637000,-1071.0,0.000107,2]
[421408615,1777578637000,-469.73578931,0.000107,2]
[421408611,1777578637000,-1922.34004422,0.000107,2]
[421408614,1777578637000,-377.27216844,0.000107,2]
[421408609,1777578637000,-927.44427191,0.000107,2]
[421408608,1777578637000,-750.7557,0.0001,2]
[421408613,1777578637000,-879.54028418,0.000107,2]
[421408610,1777578637000,-1454.76,0.000107,2]
[421408607,1777578637000,-363.98,0.0001,2]
[421408606,1777578637000,-1900.0,0.0001,2]
[421408612,1777578637000,-1051.74850456,0.000107,2]
[421408664,1777578638000,-150.0,0.00011,2]
[421408637,1777578638000,-150.0,0.00010867,2]
[421408652,1777578638000,-4000.0,0.00010976,2]
[421408670,1777578638000,-150.0,0.00011033,2]
[421408668,1777578638000,-250.0,0.00011,2]
[421408659,1777578638000,-522.94,0.00011,2]
[421408686,1777578638000,-1680.0,0.00011109,2]
[421408654,1777578638000,-500.0,0.00011,2]
[421408661,1777578638000,-500.0,0.00011,2]
[421408657,1777578638000,-500.0,0.00011,2]
[421408672,1777578638000,-150.0,0.0001104,2]
[421408674,1777578638000,-191.57,0.00011061,2]
[421408639,1777578638000,-150.0,0.000109,2]
[421408667,1777578638000,-150.0,0.00011,2]
[421408635,1777578638000,-150.0,0.00010833,2]
[421408627,1777578638000,-150.0,0.000108,2]
[421408649,1777578638000,-150.0,0.00010967,2]
[421408691,1777578638000,-166.66,0.00011142,2]
[421408619,1777578638000,-38405.57288514,0.000107,2]
[421408620,1777578638000,-16484.25760453,0.000107,2]
[421408622,1777578638000,-150.0,0.000108,2]
[421408621,1777578638000,-4000.0,0.00010708,2]
[421408624,1777578638000,-298.70687485,0.000108,2]
[421408633,1777578638000,-150.0,0.000108,2]
[421408623,1777578638000,-150.0,0.000108,2]
[421408628,1777578638000,-150.0,0.000108,2]
[421408625,1777578638000,-150.0,0.000108,2]
[421408642,1777578638000,-150.0,0.00010933,2]
[421408647,1777578638000,-166.66,0.00010959,2]
[421408644,1777578638000,-500.0,0.00010959,2]
[421408630,1777578638000,-150.0,0.000108,2]
[421408626,1777578638000,-150.0,0.000108,2]
[421408689,1777578638000,-150.0,0.00011133,2]
[421408724,1777578638000,-150.0,0.0001152,2]
[421408676,1777578638000,-150.0,0.00011067,2]
[421408723,1777578638000,-4000.0,0.00011512,2]
[421408722,1777578638000,-166.66,0.00011507,2]
[421408719,1777578638000,-150.0,0.00011433,2]
[421408720,1777578638000,-150.0,0.00011467,2]
[421408721,1777578638000,-150.0,0.000115,2]
[421408718,1777578638000,-2500.0,0.00011431,2]
[421408717,1777578638000,-35278.77812285,0.0001142,2]
[421408725,1777578638000,-10589.29121813,0.00011531,2]
[421408716,1777578638000,-150.0,0.000114,2]
[421408715,1777578638000,-150.0,0.000114,2]
[421408714,1777578638000,-150.0,0.000114,2]
[421408708,1777578638000,-150.0,0.0001128,2]
[421408709,1777578638000,-150.0,0.000113,2]
[421408711,1777578638000,-150.0,0.00011333,2]
[421408713,1777578638000,-150.0,0.000114,2]
[421408712,1777578638000,-150.0,0.00011367,2]
[421408707,1777578638000,-150.0,0.00011267,2]
[421408683,1777578638000,-300.0,0.00011109,2]
[421408679,1777578638000,-150.0,0.000111,2]
[421408710,1777578638000,-166.66,0.00011324,2]
[421408706,1777578638000,-4000.0,0.00011244,2]
[421408695,1777578638000,-150.0,0.000112,2]
[421408698,1777578638000,-150.0,0.000112,2]
[421408699,1777578638000,-150.0,0.000112,2]
[421408681,1777578638000,-150.0,0.000111,2]
[421408704,1777578638000,-150.0,0.00011233,2]
[421408701,1777578638000,-150.0,0.000112,2]
[421408700,1777578638000,-150.0,0.000112,2]
[421408703,1777578638000,-150.0,0.00011233,2]
[421408693,1777578638000,-150.0,0.00011167,2]
[421408702,1777578638000,-8891.9047797,0.00011201,2]
[421408705,1777578638000,-200.0,0.00011242,2]
[421408738,1777578643000,-827.75733248,0.00011531,2]
[421408740,1777578643000,-313.39785143,0.00011531,2]
[421408739,1777578643000,-520.45652898,0.00011531,2]
[421408750,1777578645000,-7028.92558997,0.00011531,2]
[421408755,1777578646000,-2764.99619515,0.00011531,2]
[421408753,1777578646000,-1434.61950838,0.00011531,2]
[421408754,1777578646000,-723.27390214,0.00011531,2]
[421408752,1777578646000,-1180.95304529,0.00011531,2]
[421408751,1777578646000,-341.68629724,0.00011531,2]
[421408757,1777578667000,553.73,0.00029788,120]
[421408758,1777578797000,500.0,0.00029915,120]
[421408759,1777578888000,500.0,0.00029452,120]
[421408760,1777579048000,715.3,0.00029915,120]
[421408762,1777579331000,500.0,0.00029915,120]
[421408764,1777579358000,1165.5,0.00029915,120]
[421408771,1777579831000,-1951.87210122,0.00010465,2]
[421408770,1777579831000,-572.71681083,0.00010465,2]
[421408768,1777579831000,-986.90125138,0.00010464,2]
[421408769,1777579831000,-213.09874862,0.00010464,2]
[421408801,1777579832000,-150.0,0.00011143,2]
[421408791,1777579832000,-380.52932165,0.00010978,2]
[421408792,1777579832000,-4000.0,0.00010988,2]
[421408799,1777579832000,-8190.57590059,0.00011132,2]
[421408795,1777579832000,-13944.8131,0.00011032,2]
[421408793,1777579832000,-150.0,0.00011031,2]
[421408803,1777579832000,-150.0,0.00011229,2]
[421408809,1777579832000,-150.0,0.00011314,2]
[421408805,1777579832000,-676.83119775,0.0001125,2]
[421408790,1777579832000,-150.0,0.00010971,2]
[421408807,1777579832000,-3323.16880225,0.0001125,2]
[421408811,1777579832000,-150.0,0.000114,2]
[421408813,1777579832000,-150.0,0.00011486,2]
[421408815,1777579832000,-1680.0,0.00011511,2]
[421408797,1777579832000,-150.0,0.00011057,2]
[421408785,1777579832000,-150.0,0.000108,2]
[421408787,1777579832000,-150.0,0.00010886,2]
[421408781,1777579832000,-150.0,0.000108,2]
[421408772,1777579832000,-859.784997,0.00010465,2]
[421408773,1777579832000,-615.62609095,0.00010465,2]
[421408774,1777579832000,-298.48891434,0.00010465,2]
[421408776,1777579832000,-191.02,0.00010592,2]
[421408775,1777579832000,-55655.4901,0.000105,2]
[421408822,1777579832000,-150.0,0.00011657,2]
[421408783,1777579832000,-150.0,0.000108,2]
[421408788,1777579832000,-8256.9566452,0.00010904,2]
[421408779,1777579832000,-296.17,0.00010792,2]
[421408786,1777579832000,-150.0,0.000108,2]
[421408777,1777579832000,-1255.68898723,0.00010727,2]
[421408780,1777579832000,-150.0,0.000108,2]
[421408784,1777579832000,-150.0,0.000108,2]
[421408782,1777579832000,-150.0,0.000108,2]
[421408789,1777579832000,-2764.9961952,0.00010904,2]
[421408823,1777579832000,-419.0,0.0001172,2]
[421408778,1777579832000,-2744.31101277,0.00010727,2]
[421408819,1777579832000,-150.0,0.00011571,2]
[421408842,1777579832000,-3533.0,0.00011836,2]
[421408844,1777579832000,-1267.0,0.00011836,2]
[421408847,1777579832000,-416.0,0.00011836,2]
[421408846,1777579832000,-6037.0,0.00011836,2]
[421408845,1777579832000,-356.11,0.00011836,2]
[421408851,1777579832000,-3895.47974528,0.000119,2]
[421408837,1777579832000,-150.563,0.00011836,2]
[421408853,1777579832000,-1331.61622935,0.000119,2]
[421408852,1777579832000,-234.61762402,0.000119,2]
[421408848,1777579832000,-31750.90031052,0.00011899,2]
[421408843,1777579832000,-1049.0,0.00011836,2]
[421408855,1777579832000,-1271.14161176,0.000119,2]
[421408854,1777579832000,-1605.99198305,0.000119,2]
[421408817,1777579832000,-4000.0,0.00011512,2]
[421408850,1777579832000,-2792.10039421,0.000119,2]
[421408836,1777579832000,-173.308,0.00011836,2]
[421408849,1777579832000,-764.21620512,0.000119,2]
[421408838,1777579832000,-256.929,0.00011836,2]
[421408835,1777579832000,-151.0,0.00011836,2]
[421408824,1777579832000,-150.0,0.00011743,2]
[421408821,1777579832000,-150.0,0.000116,2]
[421408825,1777579832000,-569.87197606,0.0001176,2]
[421408828,1777579832000,-1000.0,0.000118,2]
[421408827,1777579832000,-313.0,0.000118,2]
[421408830,1777579832000,-198.24,0.00011829,2]
[421408826,1777579832000,-150.0,0.000118,2]
[421408840,1777579832000,-265.836,0.00011836,2]
[421408831,1777579832000,-1593.93365055,0.00011829,2]
[421408832,1777579832000,-913.80434945,0.00011829,2]
[421408839,1777579832000,-150.0,0.00011836,2]
[421408841,1777579832000,-639.374,0.00011836,2]
[421408833,1777579832000,-200.0,0.00011836,2]
[421408829,1777579832000,-150.0,0.00011829,2]
[421408834,1777579832000,-150.0,0.00011836,2]
[421408869,1777579838000,-500.0,0.00011999,2]
[421408868,1777579838000,-500.0,0.00011999,2]
[421408873,1777579838000,-500.0,0.00011999,2]
[421408870,1777579838000,-500.0,0.00011999,2]
[421408874,1777579838000,-500.0,0.00011999,2]
[421408876,1777579838000,-500.0,0.00011999,2]
[421408875,1777579838000,-500.0,0.00011999,2]
[421408889,1777579838000,-500.0,0.00011999,2]
[421408872,1777579838000,-500.0,0.00011999,2]
[421408871,1777579838000,-500.0,0.00011999,2]
[421408863,1777579838000,-150.0,0.00011914,2]
[421408878,1777579838000,-500.0,0.00011999,2]
[421408867,1777579838000,-155.0,0.00011999,2]
[421408865,1777579838000,-224.4698634,0.0001199,2]
[421408862,1777579838000,-157.64612408,0.000119,2]
[421408864,1777579838000,-200.0,0.00011945,2]
[421408861,1777579838000,-791.25017584,0.000119,2]
[421408859,1777579838000,-119.47067835,0.00011644,2]
[421408860,1777579838000,-379.9146507,0.0001176,2]
[421408858,1777579838000,-380.52932165,0.00011644,2]
[421408884,1777579838000,-500.0,0.00011999,2]
[421408866,1777579838000,-155.7367363,0.00011997,2]
[421408881,1777579838000,-500.0,0.00011999,2]
[421408877,1777579838000,-500.0,0.00011999,2]
[421408883,1777579838000,-500.0,0.00011999,2]
[421408879,1777579838000,-500.0,0.00011999,2]
[421408913,1777579838000,-427.43709836,0.00011999,2]
[421408915,1777579838000,-23.71794925,0.00011999,2]
[421408909,1777579838000,-20.46807844,0.00011999,2]
[421408905,1777579838000,-500.0,0.00011999,2]
[421408907,1777579838000,-500.0,0.00011999,2]
[421408900,1777579838000,-201.70987921,0.00011999,2]
[421408897,1777579838000,-500.0,0.00011999,2]
[421408898,1777579838000,-500.0,0.00011999,2]
[421408894,1777579838000,-500.0,0.00011999,2]
[421408893,1777579838000,-500.0,0.00011999,2]
[421408896,1777579838000,-500.0,0.00011999,2]
[421408903,1777579838000,-298.29012079,0.00011999,2]
[421408890,1777579838000,-67.54096149,0.00011999,2]
[421408880,1777579838000,-500.0,0.00011999,2]
[421408895,1777579838000,-500.0,0.00011999,2]
[421408886,1777579838000,-500.0,0.00011999,2]
[421408885,1777579838000,-500.0,0.00011999,2]
[421408882,1777579838000,-500.0,0.00011999,2]
[421408887,1777579838000,-146.26443084,0.00011999,2]
[421408891,1777579838000,-432.45903851,0.00011999,2]
[421408892,1777579838000,-500.0,0.00011999,2]
[421408888,1777579838000,-353.73556916,0.00011999,2]
[421409125,1777579840000,-476.28205075,0.00011999,2]
[421409132,1777579840000,-293.15910438,0.00011999,2]
[421409130,1777579840000,-500.0,0.00011999,2]
[421409128,1777579840000,-500.0,0.00011999,2]
[421409127,1777579840000,-500.0,0.00011999,2]
[421409146,1777579840000,-206.84089562,0.00011999,2]
[421409159,1777579840000,-500.0,0.00011999,2]
[421409160,1777579840000,-4.28772255,0.00011999,2]
[421409149,1777579840000,-500.0,0.00011999,2]
[421409151,1777579840000,-234.05060836,0.00011999,2]
[421409155,1777579840000,-500.0,0.00011999,2]
[421409157,1777579840000,-500.0,0.00011999,2]
[421409153,1777579840000,-542.71015587,0.00011999,2]
[421409148,1777579840000,-500.0,0.00011999,2]
[421409359,1777579845000,-253.2764338,0.0001176,2]
[421409360,1777579845000,-928.0,0.00011837,2]
[421409361,1777579845000,-495.71227745,0.00011999,2]
[421409363,1777579845000,-500.0,0.00011999,2]
[421409362,1777579845000,-450.0,0.00011999,2]
[421409368,1777579846000,-112.28229565,0.00011999,2]
[421409372,1777579846000,-500.0,0.00011999,2]
[421409364,1777579846000,-500.0,0.00011999,2]
[421409366,1777579846000,-500.0,0.00011999,2]
[421409369,1777579846000,-387.71770435,0.00011999,2]
[421409367,1777579846000,-500.0,0.00011999,2]
[421409365,1777579846000,-500.0,0.00011999,2]
[421409370,1777579846000,-358.08363586,0.00011999,2]
[421409371,1777579846000,-141.91636414,0.00011999,2]
[421409377,1777579846000,-500.0,0.00011999,2]
[421409380,1777579846000,-65.18412054,0.00011999,2]
[421409378,1777579846000,-500.0,0.00011999,2]
[421409382,1777579846000,-500.0,0.00011999,2]
[421409381,1777579846000,-500.0,0.00011999,2]
[421409383,1777579846000,-500.0,0.00011999,2]
[421409384,1777579846000,-183.45987946,0.00011999,2]
[421409376,1777579846000,-500.0,0.00011999,2]
[421409373,1777579846000,-500.0,0.00011999,2]
[421409375,1777579846000,-500.0,0.00011999,2]
[421409379,1777579846000,-561.9344356,0.00011999,2]
[421409374,1777579846000,-500.0,0.00011999,2]
[421409398,1777579902000,700.0,0.0003013,120]
[421409399,1777579904000,193.0,0.0003013,120]
[421409401,1777580602000,554.18876771,0.00027849,120]
[421409400,1777580602000,500.0,0.00027849,120]
[421409403,1777580888000,685.5,0.00027849,120]
[421409402,1777580888000,685.5,0.00027849,120]
[421409404,1777580889000,685.5,0.00027849,120]
[421409405,1777580889000,685.5,0.00027849,120]
[421409406,1777580889000,685.50689496,0.00027849,120]
[421409409,1777580973000,-9.45575615,0.0001,2]
[421409407,1777580973000,-150.0,9.409e-05,2]
[421409408,1777580973000,-271.0,9.409e-05,2]
[421409410,1777580992000,163.37554985,0.00026651,120]
[421409413,1777581032000,-242.26424385,0.0001,2]
[421409421,1777581032000,-762.81049816,0.00010398,2]
[421409414,1777581032000,-270.63660781,0.0001,2]
[421409415,1777581032000,-461.88844407,0.0001,2]
[421409416,1777581032000,-358.93347476,0.0001,2]
[421409420,1777581032000,-300.0,0.00010398,2]
[421409418,1777581032000,-300.0,0.00010397,2]
[421409417,1777581032000,-250.0,0.0001035,2]
[421409419,1777581032000,-209.0,0.00010398,2]
[421409425,1777581032000,-1284.18884217,0.00010399,2]
[421409426,1777581032000,-2434.79182097,0.00010399,2]
[421409423,1777581032000,-150.0,0.00010398,2]
[421409422,1777581032000,-437.18950184,0.00010398,2]
[421409427,1777581032000,-341.348914,0.00010399,2]
[421409429,1777581032000,-3459.21954555,0.00010399,2]
[421409428,1777581032000,-985.20374786,0.00010399,2]
[421409430,1777581032000,-100889.3476079,0.00010399,2]
[421409431,1777581032000,-20727.50125759,0.000104,2]
[421409434,1777581032000,-2586.05206249,0.000104,2]
[421409433,1777581032000,-1159.94357071,0.000104,2]
[421409432,1777581032000,-3240.00711971,0.000104,2]
[421409424,1777581032000,-132.33602155,0.00010399,2]
[421409490,1777581038000,-1000.18778537,0.000104,2]
[421409492,1777581038000,-380.52932165,0.000104,2]
[421409495,1777581038000,-469.10245822,0.000104,2]
[421409489,1777581038000,-11991.61838017,0.000104,2]
[421409496,1777581038000,-1057.47540344,0.000104,2]
[421409493,1777581038000,-789.82253606,0.000104,2]
[421409494,1777581038000,-1401.9124575,0.000104,2]
[421409491,1777581038000,-865.69,0.000104,2]
[421409532,1777581040000,-151.0,0.00010497,2]
[421409524,1777581040000,-151.0,0.00010494,2]
[421409521,1777581040000,-151.0,0.00010494,2]
[421409527,1777581040000,-151.0,0.00010494,2]
[421409530,1777581040000,-681.04,0.00010494,2]
[421409528,1777581040000,-151.0,0.00010494,2]
[421409531,1777581040000,-151.0,0.00010497,2]
[421409529,1777581040000,-271.94652768,0.00010494,2]
[421409544,1777581040000,-300.0,0.00011,2]
[421409534,1777581040000,-681.04,0.00010768,2]
[421409533,1777581040000,-191.04,0.00010649,2]
[421409535,1777581040000,-150.0,0.000108,2]
[421409537,1777581040000,-150.0,0.000108,2]